fUST/lending_fUST_20240919
["ID","MTS","AMOUNT","RATE_DAILY","PERIOD"]
[338575129,1726741855678,-500.0,0.00016986,2]
[338575130,1726741855688,-661.84044328,0.00016986,2]
[338575131,1726741855701,-347.36955672,0.00016986,2]
[338575132,1726741855711,-799.57,0.00016986,2]
[338575133,1726741855721,-533.10278602,0.00016986,2]
[338575134,1726741855730,-613.87,0.00016986,2]
[338575135,1726741855739,-662.16,0.00016986,2]
[338575136,1726741855749,-500.0,0.00016986,2]
[338575137,1726741855759,-687.02,0.00016986,2]
[338575138,1726741855769,-500.0,0.00016986,2]
[338575139,1726741855781,-1061.21212628,0.00016986,2]
[338575140,1726741855794,-44.63963072,0.00016986,2]
[338575141,1726741855804,-501.64769811,0.00016986,2]
[338575142,1726741855814,-500.0,0.00016986,2]
[338575143,1726741855823,-1105.851757,0.00016986,2]
[338575144,1726741855834,-438.00006726,0.00016986,2]
[338575145,1726741855844,-500.0,0.00016986,2]
[338575146,1726741855854,-500.0,0.00016986,2]
[338575147,1726741855864,-646.66,0.00016986,2]
[338575148,1726741855874,-500.0,0.00016986,2]
[338575149,1726741855883,-500.16,0.00016986,2]
[338575150,1726741855892,-88.26506458,0.00016986,2]
[338575151,1726741856246,-562.63602959,0.00016438,2]
[338575152,1726741856255,-62.73493542,0.00016986,2]
[338575153,1726741856264,-500.0,0.00016986,2]
[338575154,1726741856274,-500.0,0.00016986,2]
[338575155,1726741856284,-289.1148186,0.00016986,2]
[338575156,1726741856294,-210.8851814,0.00016986,2]
[338575157,1726741856304,-500.0,0.00016986,2]
[338575158,1726741856318,-780.97,0.00016986,2]
[338575159,1726741856327,-500.0,0.00016986,2]
[338575160,1726741856336,-824.7,0.00016986,2]
[338575161,1726741856345,-1244.25,0.00016986,2]
[338575162,1726741856354,-500.0,0.00016986,2]
[338575163,1726741856364,-1036.72,0.00016986,2]
[338575164,1726741856373,-500.0,0.00016986,2]
[338575165,1726741856382,-1711.5,0.00016986,2]
[338575166,1726741856393,-501.92729888,0.00016986,2]
[338575167,1726741856402,-378.31421143,0.00016986,2]
[338575168,1726741856410,-2220.01935048,0.00016986,2]
[338575169,1726741856424,-182.22064952,0.00016986,2]
[338575170,1726741856433,-404.45507518,0.00016986,2]
[338575171,1726741856444,-95.54492482,0.00016986,2]
[338575172,1726741856453,-830.89,0.00016986,2]
[338575173,1726741856463,-500.0,0.00016986,2]
[338575174,1726741856473,-151.0,0.00016986,2]
[338575175,1726741856482,-954.76,0.00016986,2]
[338575176,1726741856491,-500.0,0.00016986,2]
[338575177,1726741856500,-500.0,0.00016986,2]
[338575178,1726741856510,-238.098178,0.00016986,2]
[338575179,1726741856519,-500.0,0.00016986,2]
[338575180,1726741856528,-1255.46,0.00016986,2]
[338575181,1726741856537,-803.72,0.00016986,2]
[338575182,1726741856546,-500.0,0.00016986,2]
[338575183,1726741856555,-1850.66,0.00016986,2]
[338575184,1726741856564,-500.0,0.00016986,2]
[338575185,1726741856573,-1209.65,0.00016986,2]
[338575186,1726741856582,-744.16,0.00016986,2]
[338575187,1726741856592,-500.0,0.00016986,2]
[338575188,1726741856601,-500.0,0.00016986,2]
[338575189,1726741856609,-500.0,0.00016986,2]
[338575190,1726741856619,-748.78,0.00016986,2]
[338575191,1726741856631,-500.0,0.00016986,2]
[338575192,1726741856641,-500.0,0.00016986,2]
[338575193,1726741856651,-500.0,0.00016986,2]
[338575194,1726741856661,-500.0,0.00016986,2]
[338575195,1726741856673,-1605.84,0.00016986,2]
[338575196,1726741856683,-635.96,0.00016986,2]
[338575197,1726741856692,-899.02,0.00016986,2]
[338575198,1726741856702,-257.51735784,0.00016986,2]
[338575199,1726741856711,-500.0,0.00016986,2]
[338575200,1726741856721,-500.0,0.00016986,2]
[338575201,1726741856730,-937.89,0.00016986,2]
[338575202,1726741856739,-151.0,0.00016986,2]
[338575203,1726741856748,-500.0,0.00016986,2]
[338575204,1726741856758,-1176.26,0.00016986,2]
[338575205,1726741856767,-500.0,0.00016986,2]
[338575206,1726741856776,-151.0,0.00016986,2]
[338575207,1726741856785,-500.0,0.00016986,2]
[338575208,1726741856795,-151.0,0.00016986,2]
[338575209,1726741856806,-948.8,0.00016986,2]
[338575210,1726741856815,-500.0,0.00016986,2]
[338575211,1726741856824,-505.89,0.00016986,2]
[338575212,1726741856833,-861.44,0.00016986,2]
[338575213,1726741856842,-500.0,0.00016986,2]
[338575214,1726741856852,-500.0,0.00016986,2]
[338575215,1726741856861,-1343.7,0.00016986,2]
[338575216,1726741856870,-500.0,0.00016986,2]
[338575217,1726741856882,-500.0,0.00016986,2]
[338575218,1726741856891,-500.0,0.00016986,2]
[338575219,1726741856900,-1295.6,0.00016986,2]
[338575220,1726741856910,-500.0,0.00016986,2]
[338575221,1726741856921,-500.0,0.00016986,2]
[338575222,1726741856930,-500.0,0.00016986,2]
[338575223,1726741856939,-917.28,0.00016986,2]
[338575224,1726741856948,-500.0,0.00016986,2]
[338575225,1726741856957,-947.94,0.00016986,2]
[338575226,1726741856966,-500.0,0.00016986,2]
[338575227,1726741856976,-500.0,0.00016986,2]
[338575228,1726741856985,-728.29,0.00016986,2]
[338575229,1726741856995,-779.74,0.00016986,2]
[338575230,1726741857004,-783.77,0.00016986,2]
[338575231,1726741857013,-500.0,0.00016986,2]
[338575232,1726741857022,-500.0,0.00016986,2]
[338575233,1726741857031,-500.0,0.00016986,2]
[338575234,1726741857040,-151.0,0.00016986,2]
[338575235,1726741857050,-1334.36,0.00016986,2]
[338575236,1726741857059,-151.0,0.00016986,2]
[338575237,1726741857069,-500.0,0.00016986,2]
[338575238,1726741857078,-151.0,0.00016986,2]
[338575239,1726741857087,-546.04,0.00016986,2]
[338575240,1726741857097,-500.0,0.00016986,2]
[338575241,1726741857107,-500.0,0.00016986,2]
[338575242,1726741857116,-849.75,0.00016986,2]
[338575243,1726741857125,-155.520095,0.00016986,2]
[338575244,1726741857137,-427.33169991,0.00016986,2]
[338575245,1726741857147,-880.58,0.00016986,2]
[338575246,1726741857157,-2014.37,0.00016986,2]
[338575247,1726741857166,-383.39114892,0.00016986,2]
[338575248,1726741857178,-1330.29,0.00016986,2]
[338575249,1726741857187,-155.520095,0.00016986,2]
[338575250,1726741857196,-1725.65,0.00016986,2]
[338575251,1726741857206,-500.0,0.00016986,2]
[338575252,1726741857215,-740.72,0.00016986,2]
[338575253,1726741857224,-500.0,0.00016986,2]
[338575254,1726741857234,-1018.6,0.00016986,2]
[338575255,1726741857244,-797.18,0.00016986,2]
[338575256,1726741857253,-724.33808012,0.00016986,2]
[338575257,1726741857268,-341.66,0.00016986,2]
[338575258,1726741857279,-63.90191988,0.00016986,2]
[338575259,1726741857289,-788.61,0.00016986,2]
[338575260,1726741857298,-500.0,0.00016986,2]
[338575261,1726741857309,-2623.38,0.00016986,2]
[338575262,1726741857321,-635.67,0.00016986,2]
[338575263,1726741857330,-2041.82,0.00016986,2]
[338575264,1726741857339,-1204.29,0.00016986,2]
[338575265,1726741857349,-500.0,0.00016986,2]
[338575266,1726741857359,-757.25,0.00016986,2]
[338575267,1726741857368,-617.999996,0.00016986,2]
[338575268,1726741857378,-690.23,0.00016986,2]
[338575269,1726741857387,-500.0,0.00016986,2]
[338575270,1726741857398,-455.04893122,0.00016986,2]
[338575271,1726741857667,-1718.787619,0.00016712,2]
[338575272,1726741857679,-44.95106878,0.00016986,2]
[338575273,1726741857688,-570.01,0.00016986,2]
[338575274,1726741857698,-890.88,0.00016986,2]
[338575275,1726741857707,-1039.89,0.00016986,2]
[338575276,1726741857717,-609.40797392,0.00016986,2]
[338575277,1726741857728,-335.00202608,0.00016986,2]
[338575278,1726741857738,-0.11585718,0.00016986,2]
[338575279,1726741857749,-499.88414282,0.00016986,2]
[338575280,1726741857759,-500.0,0.00016986,2]
[338575281,1726741857768,-204.103927,0.00016986,2]
[338575282,1726741858899,-295.896073,0.00016986,2]
[338575283,1726741858909,-500.0,0.00016986,2]
[338575284,1726741858921,-500.0,0.00016986,2]
[338575285,1726741858931,-500.0,0.00016986,2]
[338575286,1726741858940,-500.0,0.00016986,2]
[338575287,1726741858950,-905.13,0.00016986,2]
[338575288,1726741858959,-500.0,0.00016986,2]
[338575289,1726741858968,-500.0,0.00016986,2]
[338575290,1726741858977,-500.0,0.00016986,2]
[338575291,1726741858987,-604.74,0.00016986,2]
[338575292,1726741858996,-500.0,0.00016986,2]
[338575293,1726741859006,-1032.46,0.00016986,2]
[338575294,1726741859016,-1268.37,0.00016986,2]
[338575295,1726741859027,-500.0,0.00016986,2]
[338575296,1726741859036,-286.25256314,0.00016986,2]
[338575297,1726741859047,-151.0,0.00016986,2]
[338575298,1726741859057,-500.0,0.00016986,2]
[338575299,1726741859066,-500.0,0.00016986,2]
[338575300,1726741859076,-500.0,0.00016986,2]
[338575301,1726741859085,-500.0,0.00016986,2]
[338575302,1726741859095,-710.58,0.00016986,2]
[338575303,1726741859105,-500.0,0.00016986,2]
[338575304,1726741859115,-500.0,0.00016986,2]
[338575305,1726741859125,-1244.06,0.00016986,2]
[338575306,1726741859135,-1101.04,0.00016986,2]
[338575307,1726741859144,-500.0,0.00016986,2]
[338575308,1726741859155,-931.54,0.00016986,2]
[338575309,1726741859165,-500.0,0.00016986,2]
[338575310,1726741859176,-500.0,0.00016986,2]
[338575311,1726741859186,-522.77,0.00016986,2]
[338575312,1726741859196,-500.0,0.00016986,2]
[338575313,1726741859206,-500.0,0.00016986,2]
[338575314,1726741859216,-500.0,0.00016986,2]
[338575315,1726741859226,-151.0,0.00016986,2]
[338575316,1726741859236,-1802.19,0.00016986,2]
[338575317,1726741859246,-500.0,0.00016986,2]
[338575318,1726741859255,-750.91,0.00016986,2]
[338575319,1726741859265,-151.0,0.00016986,2]
[338575320,1726741859275,-500.0,0.00016986,2]
[338575321,1726741859285,-500.0,0.00016986,2]
[338575322,1726741859295,-628.92243136,0.00016986,2]
[338575323,1726741859305,-742.41,0.00016986,2]
[338575324,1726741859316,-3140.71,0.00016986,2]
[338575325,1726741859328,-507.84,0.00016986,2]
[338575326,1726741859338,-500.0,0.00016986,2]
[338575327,1726741859348,-575.41,0.00016986,2]
[338575328,1726741859358,-718.11,0.00016986,2]
[338575329,1726741859367,-500.0,0.00016986,2]
[338575330,1726741859377,-661.14,0.00016986,2]
[338575331,1726741859388,-719.05,0.00016986,2]
[338575332,1726741859402,-1561.79,0.00016986,2]
[338575333,1726741859413,-504.66,0.00016986,2]
[338575334,1726741859424,-462.56920989,0.00016986,2]
[338575335,1726741859435,-522.04700639,0.00016986,2]
[338575336,1726741859446,-853.32,0.00016986,2]
[338575337,1726741859457,-500.0,0.00016986,2]
[338575338,1726741859467,-1252.36,0.00016986,2]
[338575339,1726741859477,-1902.17,0.00016986,2]
[338575340,1726741859487,-798.56,0.00016986,2]
[338575341,1726741859497,-920.19,0.00016986,2]
[338575342,1726741859507,-988.11,0.00016986,2]
[338575343,1726741859517,-500.0,0.00016986,2]
[338575344,1726741859527,-542.454776,0.00016986,2]
[338575345,1726741859537,-500.0,0.00016986,2]
[338575346,1726741859547,-1606.04,0.00016986,2]
[338575347,1726741859556,-500.0,0.00016986,2]
[338575348,1726741859566,-289.294998,0.00016986,2]
[338575349,1726741859576,-526.89,0.00016986,2]
[338575350,1726741859587,-500.0,0.00016986,2]
[338575351,1726741859596,-289.294998,0.00016986,2]
[338575352,1726741859606,-402.89983223,0.00016986,2]
[338575353,1726741859616,-2480.72,0.00016986,2]
[338575354,1726741859626,-500.0,0.00016986,2]
[338575355,1726741859635,-500.0,0.00016986,2]
[338575356,1726741859645,-500.0,0.00016986,2]
[338575357,1726741859655,-2398.52,0.00016986,2]
[338575358,1726741859664,-500.0,0.00016986,2]
[338575359,1726741859674,-515.91,0.00016986,2]
[338575360,1726741859683,-1443.33,0.00016986,2]
[338575361,1726741859693,-812.01,0.00016986,2]
[338575362,1726741859703,-584.56,0.00016986,2]
[338575363,1726741859713,-500.0,0.00016986,2]
[338575364,1726741859723,-552.07450494,0.00016986,2]
[338575365,1726741859733,-933.15,0.00016986,2]
[338575366,1726741859744,-952.23775,0.00016986,2]
[338575367,1726741859755,-979.58,0.00016986,2]
[338575368,1726741859765,-500.0,0.00016986,2]
[338575369,1726741859776,-952.23775,0.00016986,2]
[338575370,1726741859786,-500.0,0.00016986,2]
[338575371,1726741859796,-500.0,0.00016986,2]
[338575372,1726741859807,-206.113368,0.00016986,2]
[338575373,1726741859817,-1080.95,0.00016986,2]
[338575374,1726741859826,-2173.03,0.00016986,2]
[338575375,1726741859836,-206.113368,0.00016986,2]
[338575376,1726741859846,-500.0,0.00016986,2]
[338575377,1726741859856,-500.0,0.00016986,2]
[338575378,1726741859866,-752.600615,0.00016986,2]
[338575379,1726741859876,-3609.099723,0.00016986,2]
[338575380,1726741859886,-500.0,0.00016986,2]
[338575381,1726741859896,-500.0,0.00016986,2]
[338575382,1726741859907,-500.0,0.00016986,2]
[338575383,1726741859916,-151.0,0.00016986,2]
[338575384,1726741859930,-852.43886,0.00016986,2]
[338575385,1726741859939,-752.600615,0.00016986,2]
[338575386,1726741859950,-3609.099723,0.00016986,2]
[338575387,1726741859960,-1514.93,0.00016986,2]
[338575388,1726741859970,-224.266094,0.00016986,2]
[338575389,1726741859980,-500.0,0.00016986,2]
[338575390,1726741859990,-717.6,0.00016986,2]
[338575391,1726741860000,-500.0,0.00016986,2]
[338575392,1726741860011,-852.43886,0.00016986,2]
[338575393,1726741860021,-170.789961,0.00016986,2]
[338575394,1726741860031,-500.0,0.00016986,2]
[338575395,1726741860040,-263.199991,0.00016986,2]
[338575396,1726741860051,-1289.4543,0.00016986,2]
[338575397,1726741860061,-170.789961,0.00016986,2]
[338575398,1726741860072,-500.0,0.00016986,2]
[338575399,1726741860081,-263.199991,0.00016986,2]
[338575400,1726741860091,-855.8,0.00016986,2]
[338575401,1726741860102,-1289.4543,0.00016986,2]
[338575402,1726741860111,-500.0,0.00016986,2]
[338575403,1726741860121,-151.0,0.00016986,2]
[338575404,1726741860131,-500.0,0.00016986,2]
[338575405,1726741860141,-241.44670329,0.00016986,2]
[338575406,1726741860151,-500.0,0.00016986,2]
[338575407,1726741860162,-1273.484446,0.00016986,2]
[338575408,1726741860174,-500.0,0.00016986,2]
[338575409,1726741860184,-500.0,0.00016986,2]
[338575410,1726741860194,-1273.484446,0.00016986,2]
[338575411,1726741860204,-880.96,0.00016986,2]
[338575412,1726741860214,-447.65138317,0.00016986,2]
[338575413,1726741860224,-333.67,0.00016986,2]
[338575414,1726741860235,-151.0,0.00016986,2]
[338575415,1726741860245,-987.4,0.00016986,2]
[338575416,1726741860255,-500.0,0.00016986,2]
[338575417,1726741860265,-500.0,0.00016986,2]
[338575418,1726741860275,-151.0,0.00016986,2]
[338575419,1726741860285,-1503.33,0.00016986,2]
[338575420,1726741860295,-679.83,0.00016986,2]
[338575421,1726741860305,-1146.89,0.00016986,2]
[338575422,1726741860318,-598.610571,0.00016986,2]
[338575423,1726741860328,-500.0,0.00016986,2]
[338575424,1726741860338,-852.72,0.00016986,2]
[338575425,1726741860348,-598.610571,0.00016986,2]
[338575426,1726741860359,-1991.96,0.00016986,2]
[338575427,1726741860369,-500.0,0.00016986,2]
[338575428,1726741860379,-584.42,0.00016986,2]
[338575429,1726741860394,-500.0,0.00016986,2]
[338575430,1726741860404,-1351.2,0.00016986,2]
[338575431,1726741860415,-889.42,0.00016986,2]
[338575432,1726741860427,-1827.19,0.00016986,2]
[338575433,1726741860438,-984.52,0.00016986,2]
[338575434,1726741860447,-367.81182069,0.00016986,2]
[338575435,1726741860457,-500.0,0.00016986,2]
[338575436,1726741860467,-502.02968241,0.00016986,2]
[338575437,1726741860477,-830.48,0.00016986,2]
[338575438,1726741860487,-500.0,0.00016986,2]
[338575439,1726741860496,-500.0,0.00016986,2]
[338575440,1726741860507,-522.132037,0.00016986,2]
[338575441,1726741860517,-500.0,0.00016986,2]
[338575442,1726741860527,-522.132037,0.00016986,2]
[338575443,1726741860537,-500.0,0.00016986,2]
[338575444,1726741860547,-500.0,0.00016986,2]
[338575445,1726741860558,-504.95,0.00016986,2]
[338575446,1726741860568,-500.0,0.00016986,2]
[338575447,1726741860578,-509.480479,0.00016986,2]
[338575448,1726741860588,-500.0,0.00016986,2]
[338575449,1726741860598,-500.0,0.00016986,2]
[338575450,1726741860608,-151.0,0.00016986,2]
[338575451,1726741860618,-509.480479,0.00016986,2]
[338575452,1726741860629,-151.0,0.00016986,2]
[338575453,1726741860640,-500.0,0.00016986,2]
[338575454,1726741860650,-500.0,0.00016986,2]
[338575455,1726741860660,-151.0,0.00016986,2]
[338575456,1726741860670,-500.0,0.00016986,2]
[338575457,1726741860680,-597.50673896,0.00016986,2]
[338575458,1726741860690,-218.761464,0.00016986,2]
[338575459,1726741860701,-500.0,0.00016986,2]
[338575460,1726741860711,-500.0,0.00016986,2]
[338575461,1726741860721,-500.0,0.00016986,2]
[338575462,1726741860731,-562.08,0.00016986,2]
[338575463,1726741860741,-436.64733466,0.00016986,2]
[338575464,1726741860751,-500.0,0.00016986,2]
[338575465,1726741860760,-500.0,0.00016986,2]
[338575466,1726741860771,-2080.917022,0.00016986,2]
[338575467,1726741860781,-500.0,0.00016986,2]
[338575468,1726741860791,-151.0,0.00016986,2]
[338575469,1726741860801,-2080.917022,0.00016986,2]
[338575470,1726741860811,-1787.17,0.00016986,2]
[338575471,1726741860820,-501.63819716,0.00016986,2]
[338575472,1726741860831,-500.0,0.00016986,2]
[338575473,1726741860841,-3769.21,0.00016986,2]
[338575474,1726741860852,-500.0,0.00016986,2]
[338575475,1726741860862,-557.80491455,0.00016986,2]
[338575476,1726741860872,-668.88,0.00016986,2]
[338575477,1726741860882,-500.0,0.00016986,2]
[338575478,1726741860892,-844.05,0.00016986,2]
[338575479,1726741860902,-500.0,0.00016986,2]
[338575480,1726741860911,-500.0,0.00016986,2]
[338575481,1726741860922,-500.0,0.00016986,2]
[338575482,1726741860932,-592.4,0.00016986,2]
[338575483,1726741860943,-500.0,0.00016986,2]
[338575484,1726741860953,-500.0,0.00016986,2]
[338575485,1726741860962,-500.0,0.00016986,2]
[338575486,1726741860973,-500.0,0.00016986,2]
[338575487,1726741861239,-655.86,0.00016986,2]
[338575488,1726741861249,-894.18,0.00016986,2]
[338575489,1726741861259,-972.24,0.00016986,2]
[338575490,1726741861269,-151.0,0.00016986,2]
[338575491,1726741861279,-151.0,0.00016986,2]
[338575492,1726741861289,-3003.323229,0.00016986,2]
[338575493,1726741861299,-500.0,0.00016986,2]
[338575494,1726741861310,-3003.323229,0.00016986,2]
[338575495,1726741861321,-151.0,0.00016986,2]
[338575496,1726741861332,-500.0,0.00016986,2]
[338575497,1726741861341,-500.0,0.00016986,2]
[338575498,1726741861352,-1656.88,0.00016986,2]
[338575499,1726741861362,-579.46,0.00016986,2]
[338575500,1726741861372,-500.0,0.00016986,2]
[338575501,1726741861382,-563.95,0.00016986,2]
[338575502,1726741861392,-151.0,0.00016986,2]
[338575503,1726741861405,-686.546402,0.00016986,2]
[338575504,1726741861416,-489.454021,0.00016986,2]
[338575505,1726741861429,-500.0,0.00016986,2]
[338575506,1726741861439,-847.09,0.00016986,2]
[338575507,1726741861449,-686.546402,0.00016986,2]
[338575508,1726741861459,-489.454021,0.00016986,2]
[338575509,1726741861468,-846.84754,0.00016986,2]
[338575510,1726741861477,-558.17,0.00016986,2]
[338575511,1726741861487,-500.0,0.00016986,2]
[338575512,1726741861497,-846.84754,0.00016986,2]
[338575513,1726741861507,-500.0,0.00016986,2]
[338575514,1726741861516,-500.0,0.00016986,2]
[338575515,1726741861526,-227.58702195,0.00016986,2]
[338575516,1726741861535,-500.0,0.00016986,2]
[338575517,1726741861545,-500.0,0.00016986,2]
[338575518,1726741861555,-500.0,0.00016986,2]
[338575519,1726741861565,-500.0,0.00016986,2]
[338575520,1726741861574,-151.0,0.00016986,2]
[338575521,1726741861584,-151.0,0.00016986,2]
[338575522,1726741861593,-500.0,0.00016986,2]
[338575523,1726741861603,-500.0,0.00016986,2]
[338575524,1726741861612,-151.0,0.00016986,2]
[338575525,1726741861623,-151.0,0.00016986,2]
[338575526,1726741861635,-500.0,0.00016986,2]
[338575527,1726741861646,-500.0,0.00016986,2]
[338575528,1726741861656,-500.0,0.00016986,2]
[338575529,1726741861667,-3353.97,0.00016986,2]
[338575530,1726741861687,-926.37,0.00016986,2]
[338575531,1726741861697,-151.0,0.00016986,2]
[338575532,1726741861707,-151.0,0.00016986,2]
[338575533,1726741861716,-500.0,0.00016986,2]
[338575534,1726741861725,-549.98,0.00016986,2]
[338575535,1726741861735,-916.46,0.00016986,2]
[338575536,1726741861744,-151.0,0.00016986,2]
[338575537,1726741861754,-852.43,0.00016986,2]
[338575538,1726741861764,-151.0,0.00016986,2]
[338575539,1726741861773,-500.0,0.00016986,2]
[338575540,1726741861783,-368.966285,0.00016986,2]
[338575541,1726741861793,-368.966285,0.00016986,2]
[338575542,1726741861804,-1381.29,0.00016986,2]
[338575543,1726741861813,-500.0,0.00016986,2]
[338575544,1726741861823,-681.01,0.00016986,2]
[338575545,1726741861834,-500.54365405,0.00016986,2]
[338575546,1726741861844,-368.966285,0.00016986,2]
[338575547,1726741861854,-368.966285,0.00016986,2]
[338575548,1726741861865,-66423.35,0.00016986,2]
[338575549,1726741861875,-500.0,0.00016986,2]
[338575550,1726741861887,-500.0,0.00016986,2]
[338575551,1726741861897,-721.85,0.00016986,2]
[338575552,1726741861907,-1018.51,0.00016986,2]
[338575553,1726741861916,-183.975199,0.00016986,2]
[338575554,1726741861931,-183.975199,0.00016986,2]
[338575555,1726741861941,-500.0,0.00016986,2]
[338575556,1726741861950,-151.0,0.00016986,2]
[338575557,1726741861960,-517.21167255,0.00016986,2]
[338575558,1726741861970,-500.0,0.00016986,2]
[338575559,1726741861980,-151.0,0.00016986,2]
[338575560,1726741861990,-500.0,0.00016986,2]
[338575561,1726741862000,-7969.23,0.00016986,2]
[338575562,1726741862010,-500.0,0.00016986,2]
[338575563,1726741862020,-183.975199,0.00016986,2]
[338575564,1726741862030,-183.975199,0.00016986,2]
[338575565,1726741862040,-1444.82,0.00016986,2]
[338575566,1726741862050,-500.0,0.00016986,2]
[338575567,1726741862059,-849.76,0.00016986,2]
[338575568,1726741862069,-530.96,0.00016986,2]
[338575569,1726741862079,-642.77973621,0.00016986,2]
[338575570,1726741862091,-151.0,0.00016986,2]
[338575571,1726741862102,-500.0,0.00016986,2]
[338575572,1726741862112,-500.0,0.00016986,2]
[338575573,1726741862122,-500.0,0.00016986,2]
[338575574,1726741862132,-500.0,0.00016986,2]
[338575575,1726741862141,-918.27,0.00016986,2]
[338575576,1726741862151,-323.62,0.00016986,2]
[338575577,1726741862161,-1718.787619,0.00016986,2]
[338575578,1726741862174,-1224.88751636,0.00017018,2]
[338575579,1726741862185,-150.0,0.00017018,2]
[338575580,1726741862195,-6616.63756869,0.00017035,2]
[338575581,1726741862205,-150.112233,0.000172,2]
[338575582,1726741862218,-151.0,0.0001725,2]
[338575583,1726741862227,-151.0,0.0001725,2]
[338575584,1726741862237,-151.0,0.0001725,2]
[338575585,1726741862246,-151.0,0.0001725,2]
[338575586,1726741862256,-151.0,0.0001725,2]
[338575587,1726741862265,-151.0,0.0001725,2]
[338575588,1726741862275,-151.0,0.0001725,2]
[338575589,1726741862285,-500.0,0.0001726,2]
[338575590,1726741862295,-500.0,0.0001726,2]
[338575591,1726741862307,-500.0,0.0001726,2]
[338575592,1726741862317,-500.0,0.0001726,2]
[338575593,1726741862331,-500.0,0.0001726,2]
[338575594,1726741862340,-1125.79,0.0001726,2]
[338575595,1726741862350,-956.93,0.0001726,2]
[338575596,1726741862362,-500.0,0.0001726,2]
[338575597,1726741862372,-1123.64,0.0001726,2]
[338575598,1726741862383,-151.0,0.0001726,2]
[338575599,1726741862393,-246.31061319,0.0001726,2]
[338575600,1726741862404,-1251.6,0.0001726,2]
[338575601,1726741862414,-559.76,0.0001726,2]
[338575602,1726741862427,-500.0,0.0001726,2]
[338575603,1726741862438,-830.69,0.0001726,2]
[338575604,1726741862448,-269.93915243,0.0001726,2]
[338575605,1726741862458,-594.78,0.0001726,2]
[338575606,1726741862467,-500.0,0.0001726,2]
[338575607,1726741862477,-777.96,0.0001726,2]
[338575608,1726741862487,-291.130845,0.0001726,2]
[338575609,1726741862496,-500.0,0.0001726,2]
[338575610,1726741862506,-500.0,0.0001726,2]
[338575611,1726741862516,-500.0,0.0001726,2]
[338575612,1726741862526,-530.41,0.0001726,2]
[338575613,1726741862535,-1426.88,0.0001726,2]
[338575614,1726741862546,-184.83287,0.0001726,2]
[338575615,1726741862556,-500.0,0.0001726,2]
[338575616,1726741862566,-151.0,0.0001726,2]
[338575617,1726741862576,-500.0,0.0001726,2]
[338575618,1726741862586,-500.0,0.0001726,2]
[338575619,1726741862596,-1299.46,0.0001726,2]
[338575620,1726741862606,-500.0,0.0001726,2]
[338575621,1726741862616,-500.0,0.0001726,2]
[338575622,1726741862625,-500.0,0.0001726,2]
[338575623,1726741862635,-500.0,0.0001726,2]
[338575624,1726741862644,-207.7,0.0001726,2]
[338575625,1726741862653,-500.66282124,0.0001726,2]
[338575626,1726741862663,-524.74,0.0001726,2]
[338575627,1726741862677,-500.0,0.0001726,2]
[338575628,1726741862687,-837.47,0.0001726,2]